Cogmind - Beta 16 @@@ ROGUE MODE // 2025.12.12 @ 09:15:20 Player: h76 Result: Destroyed by X-62 Marksman with Pulse Rifle Performance ------------- Evolutions (2) 1000 Regions Visited (4) 800 Robots Destroyed (63) 315 Value Destroyed (1668) 1668 Prototype IDs (3) 60 Alien Tech Used (0) 0 Bonus (75) 75 TOTAL SCORE: 3918 Bonus ------- Follower Combat Kills 75 Cogmind --------- Core Integrity 0/550 Matter 184/300 Energy 272/275 System Corruption 0% Temperature Warm (195) Movement Core (400) Ox7 Location -8/Materials Parts ------- > --- POWER (2) -------- Deuterium Engine > --- PROPULSION (2) --- (None) > --- UTILITY (4) ------ Medium Storage Unit Hacking Suite > --- WEAPON (3) ------- Chainsword > --- INVENTORY (10) --- Ion Engine Improved Flight Unit Small Battery (100) Recalibrator Chainsword Peak State ------------ > --- POWER ------------ Deuterium Engine Deuterium Engine > --- PROPULSION ------- Medium Treads Medium Treads > --- UTILITY ---------- Medium Storage Unit Heavy Armor Plating Hacking Suite > --- WEAPON ----------- Lightning Gun Lightning Gun Chainsword > --- INVENTORY -------- Ion Engine Improved Flight Unit Small Battery Recalibrator Flak Cannon Chainsword [Rating: 37] Favorites ----------- Power Ion Engine Engine Ion Engine Power Core Light Nuclear Core Propulsion Light Treads Treads Light Treads Leg Carbon-fiber Leg Flight Unit Improved Flight Unit Utility Medium Storage Unit Device Improved Terrain Scanner Storage Medium Storage Unit Hackware Hacking Suite Protection Heavy Armor Plating Weapon Lightning Gun Energy Gun Lightning Gun Energy Cannon Beam Cannon Ballistic Gun Assault Rifle Ballistic Cannon Assault Cannon Slashing Weapon Ripper Build | -11 -10 -10 -9 -8 ------- Run | Yrd Mat Min Mat Mat Slots Evolved 4 | . . . 2 2 Power 1 | . . . . 1 Propulsion . | . . . . . Utility 2 | . . . 2 . Weapon 1 | . . . . 1 Parts Attached 48 | 7 3 5 8 25 Power 12 | 1 . 1 1 9 Engine 10 | 1 . 1 1 7 Core 2 | . . . . 2 Reactor . | . . . . . Propulsion 13 | 2 . 2 3 6 Treads 8 | 2 . . . 6 Leg 4 | . . 2 2 . Wheel . | . . . . . Hover . | . . . . . Flight 1 | . . . 1 . Utility 9 | 2 1 . 3 3 Device 4 | 1 . . 2 1 Storage 3 | 1 1 . . 1 Processor . | . . . . . Hackware 1 | . . . 1 . Protection 1 | . . . . 1 Artifact . | . . . . . Weapon 14 | 2 2 2 1 7 Energy Gun 7 | 1 . . 1 5 Energy Cannon 2 | . 2 . . . Ballistic Gun 1 | 1 . . . . Ballistic Cannon 2 | . . 1 . 1 Launcher . | . . . . . Special Weapon . | . . . . . Impact Weapon . | . . . . . Slashing Weapon 2 | . . 1 . 1 Piercing Weapon . | . . . . . Special Melee Weapon . | . . . . . Unidentified Prototypes 1 | . . . 1 . Parts Lost 17 | . . . . 17 Power 5 | . . . . 5 Propulsion 5 | . . . . 5 Utility 3 | . . . . 3 Weapon 4 | . . . . 4 Highest Loss Streak 6 | . . . . 6 To Critical Strikes . | . . . . . Average Backups 5 | 2 4 9 8 4 Power . | . 1 . . . Propulsion . | . . 1 . 1 Utility 1 | . . 3 2 1 Weapon 2 | . 2 4 3 1 Tool/Special . | . . . . . Unused Backups 11 | . 1 2 3 5 Power . | . . . . . Propulsion . | . . . . . Utility 3 | . . . . 3 Weapon 7 | . 1 1 3 2 Tool/Special 1 | . . 1 . . Average Slot Usage (%) 90 | . 99 100 91 81 Engine 12 | . 14 14 11 11 Core 1 | . . . . 2 Treads 14 | . 28 4 12 13 Leg 6 | . . 23 9 1 Device 12 | . 14 14 13 10 Storage 10 | . 14 14 11 7 Hackware 5 | . . . 11 9 Energy Gun 7 | . 3 . 3 13 Energy Cannon 4 | . 13 8 . . Ballistic Gun 2 | . 10 . . . Ballistic Cannon 5 | . . 11 11 3 Slashing Weapon 6 | . . 7 7 8 Peak Build Rating 37 | 9 11 20 29 37 Average Rating 21 | 4 9 18 21 29 On Entrance 13 | . 9 11 20 28 Avg Prop Armor Cover (%) . | . . . . . Naked Turns . | . . . . . Heaviest Build 56 | 14 23 25 29 56 Greatest Support 56 | 40 40 40 40 56 Greatest Overweight (x) 12 | 3 . . 1 12 Average Overweight (x) . | . . . . . Largest Inventory Capacity 10 | 8 10 10 10 10 Average Capacity 9 | 7 8 10 10 9 Most Carried 10 | 6 9 10 10 10 Average Carried 5 | 2 4 9 7 4 Final Capacity 10 | 8 10 10 10 10 Final Carried 10 | 2 9 10 7 5 Class Distribution -------------------- 77% | Mutant 22% | Scavenger-Mutant Dominant Class ---------------- Mutant | -10/Materials Mutant | -10/Mines Mutant | -9/Materials Mutant | -8/Materials Resources | -11 -10 -10 -9 -8 ----------- Run | Yrd Mat Min Mat Mat Matter Collected 1288 | 200 215 52 258 563 Remotely . | . . . . . Salvage Created 2237 | 76 497 41 137 1486 Parts 126 | 8 38 8 6 66 Haulers Intercepted 7 | . 2 . 2 3 Recyclers Shooed 1 | . . . . 1 Parts Field Recycled . | . . . . . Retrieved Matter . | . . . . . Parts Self-Destructed . | . . . . . Prevented . | . . . . . Parts Restored . | . . . . . Kills | -11 -10 -10 -9 -8 ------- Run | Yrd Mat Min Mat Mat Combat Hostiles Destroyed 37 | . 6 4 2 25 Melee 4 | . . . . 4 Guns 11 | . 2 . . 9 Cannons 18 | . 4 4 2 8 AOE 2 | . . . . 2 Classes Destroyed 14 | 1 8 . 1 4 Worker 1 | . . . . 1 Builder 3 | . 1 1 . 1 Tunneler 4 | 3 1 . . . Hauler 7 | . 2 . 2 3 Recycler 2 | . 1 . . 1 Mechanic 1 | . 1 . . . Operator 1 | . 1 . . . Watcher 7 | . 3 . . 4 Swarmer 9 | . 3 4 . 2 Grunt 19 | . 3 . . 16 Duelist 1 | . . . . 1 Sentry 6 | . . . 2 4 Specialist 1 | . . . . 1 Hunter 1 | . . . . 1 Best Kill Streak 6 | 2 4 3 1 6 Combat Bots Only 5 | . 3 3 1 5 Max Kills in Single Turn 2 | 1 2 1 1 1 Gunslinging . | . . . . . Exploded 1 | . . . . 1 Melee 1 | . . . . 1 Uniques/NPCs Destroyed . | . . . . . Combat | -11 -10 -10 -9 -8 -------- Run | Yrd Mat Min Mat Mat Hostile Shots Fired 305 | . 29 27 8 241 Missed 72 | . 7 8 1 56 Hits 233 | . 22 19 7 185 Melee 2 | . . . . 2 Projectile 231 | . 22 19 7 183 AOE 1 | . . . . 1 Critical Strikes 12 | . . 1 . 11 Damage Taken 3546 | . 239 193 99 3015 Core 662 | . 65 42 . 555 Absorbed by Shields . | . . . . . Regen/Repaired (Parts) 20 | . . . . 20 Core Remaining (%) 85 | 100 . 57 100 . Volleys Fired 201 | 7 37 16 25 116 Largest 2 | 2 2 1 2 2 Hottest 128 | 60 128 37 112 112 Shots Fired 339 | 14 74 18 38 195 Gun 201 | 14 47 . 13 127 Cannon 138 | . 27 18 25 68 Launcher . | . . . . . Special . | . . . . . Kinetic 147 | 7 36 17 25 62 Thermal 96 | 7 38 1 13 37 Explosive . | . . . . . Electromagnetic 96 | . . . . 96 Robot Hit Streak 7 | 3 5 3 3 7 Robot Miss Streak 9 | 2 3 2 4 9 Penetration Max . | . . . . . Secondary Targets 2 | . . . . 2 Max Gunslinging Chain 1 | . . . . 1 Shots Hit Robots 218 | 7 41 12 19 139 Core Hits 99 | 3 21 5 4 66 Critical Kills . | . . . . . Critical Parts Destroyed . | . . . . . Critical Strikes 4 | . . . 1 3 Burn 1 | . . . . 1 Blast 2 | . . . 1 1 Corrupt 1 | . . . . 1 Melee Attacks 19 | . . 4 . 15 Impact . | . . . . . Slashing 19 | . . 4 . 15 Piercing . | . . . . . Sneak Attacks 9 | . . 2 . 7 Combat Hostiles . | . . . . . Follow-up Attacks . | . . . . . Damage Inflicted 4981 | 93 613 389 484 3402 Guns 2146 | 93 327 . 125 1601 Cannons 1939 | . 284 206 359 1090 Explosions 49 | . . . . 49 Melee 845 | . . 183 . 662 Ramming 2 | . 2 . . . Kinetic 1811 | 39 239 185 359 989 Thermal 1088 | 54 372 21 125 516 Explosive . | . . . . . Electromagnetic 1235 | . . . . 1235 Impact . | . . . . . Slashing 845 | . . 183 . 662 Piercing . | . . . . . Highest Corruption 1 | . 1 1 . . Average Corruption 1 | . 1 1 . . Corruption Purged . | . . . . . Corruption Blocked . | . . . . . Effects 6 | . . 6 . . Message Errors 1 | . . 1 . . Matter Fused 3 | . . 3 . . Misfires 2 | . . 2 . . Overload Shots . | . . . . . Overflow Damage 208 | . . 57 . 151 Projectiles 22 | . . 2 . 20 Explosions . | . . . . . Melee 186 | . . 55 . 131 Knockbacks 30 | . . 2 . 28 Impact . | . . . . . Kinetic 29 | . . 2 . 27 Secondary 1 | . . . . 1 Self-Inflicted Damage 29 | . . . . 29 Shots 1 | . . . . 1 Rammed 2 | . 2 . . . Targets Rammed 2 | . 2 . . . Kicked . | . . . . . Crushed . | . . . . . Highest Temperature 443 | . 180 32 12 443 Average Temperature 113 | . 51 20 4 141 Received Heat Transfer 1569 | . 66 . 33 1470 Effects 7 | . . . . 7 Shutdowns 3 | . . . . 3 Interference 1 | . . . . 1 Damage (major) 3 | . . . . 3 Siege Activations . | . . . . . Martial Activations . | . . . . . Shielding Activations . | . . . . . Robots Disrupted 2 | . . . . 2 Combat Hostiles 2 | . . . . 2 Robots Corrupted 3 | . . . . 3 Combat Hostiles 2 | . . . . 2 Parts Fried 12 | . . . . 12 Impact Corruptions . | . . . . . Robots Melted . | . . . . . Combat Hostiles . | . . . . . Parts Melted 3 | . 1 . . 2 Heat Transferred 2101 | 125 792 37 222 925 Parts Sabotaged . | . . . . . Parts Stolen . | . . . . . Parts Stripped . | . . . . . Power Chain Reactions 1 | . . . . 1 Alert | -11 -10 -10 -9 -8 ------- Run | Yrd Mat Min Mat Mat Maximum Alert Level 1 | . . . . 1 Low Security (%) 99 | 100 100 100 100 99 Level 1 . | . . . . . Level 2 . | . . . . . Level 3 . | . . . . . Level 4 . | . . . . . Level 5 . | . . . . . High Security . | . . . . . Max Security . | . . . . . Peak Influence 211 | 10 100 53 51 211 Initial 13 | . . 11 . 13 Average 36 | . 39 10 17 55 Influence Increases 1306 | 15 235 113 184 759 Destroy 0b10 Robot/C 800 | . 120 80 100 500 Destroy 0b10 Robot/NC 130 | 15 50 5 10 50 Destroy Leader 218 | . 40 20 34 124 Allied During Kill 15 | . . 4 11 . Successful Hack 26 | . 9 . 8 9 Disable Machine 60 | . 15 . 15 30 Destroy Structure 27 | . 1 4 6 16 Lose Combat Pursuer 30 | . . . . 30 Influence Decreases 1129 | 15 205 143 151 615 Entered New Map 39 | . . 19 . 20 Time Decay 851 | 15 205 124 111 396 Lost Part 151 | . . . . 151 Lost Ally 40 | . . . 40 . Purge Threat 48 | . . . . 48 Squads Dispatched 11 | . 3 . 2 6 Investigation 3 | . 1 . . 2 Extermination . | . . . . . Reinforcement 8 | . 2 . 2 4 Assault . | . . . . . Garrison . | . . . . . Intercept . | . . . . . Searches Triggered . | . . . . . Construction Impeded . | . . . . . Haulers Reinforced . | . . . . . Active Scanning Responses . | . . . . . Cargo Convoy Interrupts . | . . . . . Stealth | -11 -10 -10 -9 -8 --------- Run | Yrd Mat Min Mat Mat Distress Signals 3 | . . . . 3 Communications Jammed . | . . . . . Distress Signals . | . . . . . Times Spotted 62 | . 12 4 4 42 Peak Tracking Total 5 | . 2 3 2 5 Tactical Retreats 1 | . . . . 1 Traps | -11 -10 -10 -9 -8 ------- Run | Yrd Mat Min Mat Mat Traps Triggered 5 | . 2 2 . 1 Indirectly . | . . . . . Trap Hack Attempts . | . . . . . Triggered . | . . . . . Disarmed . | . . . . . Reprogrammed . | . . . . . Reused . | . . . . . Traps Extracted . | . . . . . Installed . | . . . . . Triggered . | . . . . . Machines | -11 -10 -10 -9 -8 ---------- Run | Yrd Mat Min Mat Mat Machines Disabled 4 | . 1 . 1 2 Max in Single Turn 1 | . 1 . 1 1 Machines Repaired . | . . . . . Machines Dismantled . | . . . . . Machines Sabotaged . | . . . . . Overloaded Fab Kills . | . . . . . Hacking | -11 -10 -10 -9 -8 --------- Run | Yrd Mat Min Mat Mat Machines Accessed 9 | . 3 1 1 4 Terminals 6 | . 2 . 1 3 Fabricators . | . . . . . Repair Stations 1 | . . . . 1 Recycling Units 1 | . 1 . . . Scanalyzers . | . . . . . Garrison Access . | . . . . . Total Hacks 29 | . 14 1 2 12 Successful 19 | . 10 1 2 6 Failed 10 | . 4 . . 6 Catastrophic . | . . . . . Database Lockouts . | . . . . . Manual . | . . . . . Terminals 20 | . 9 . 2 9 Fabricators . | . . . . . Repair Stations 3 | . . . . 3 Recycling Units 5 | . 5 . . . Scanalyzers . | . . . . . Garrison Access . | . . . . . Terminal Hacks 15 | . 8 1 2 4 Record 3 | . 3 . . . Robot Analysis 1 | . . . . 1 Prototype ID Bank 1 | . 1 . . . Open Door 1 | . . 1 . . Emergency Access Points 1 | . . . . 1 Terminal Index 1 | . 1 . . . Alert Level 1 | . . . 1 . Unreport Threat 1 | . . . . 1 Locate Traps 2 | . 1 . . 1 Maintenance Status 1 | . 1 . . . Registered Components 1 | . 1 . . . Registered Prototypes 1 | . . . 1 . Fabricator Hacks . | . . . . . Repair Station Hacks 2 | . . . . 2 Scan Component 1 | . . . . 1 Repair 1 | . . . . 1 Recycling Unit Hacks 2 | . 2 . . . Report Inventory 1 | . 1 . . . Retrieve Components 1 | . 1 . . . Scanalyzer . | . . . . . Garrison Access Hacks . | . . . . . Unauthorized Hacks . | . . . . . Terminals . | . . . . . Fabricators . | . . . . . Repair Stations . | . . . . . Recycling Units . | . . . . . Scanalyzers . | . . . . . Garrison Access . | . . . . . Data Cores Recovered . | . . . . . Used . | . . . . . Hacking Detections 7 | . 2 . 1 4 Full Trace Events 2 | . . . . 2 Feedback Events . | . . . . . Feedback Blocked . | . . . . . Robot Schematics Acquired . | . . . . . Robots Built . | . . . . . Authchips . | . . . . . Time . | . . . . . Total Robot Build Rating . | . . . . . Part Schematics Acquired . | . . . . . Parts Built . | . . . . . Authchips . | . . . . . Time . | . . . . . Total Part Build Rating . | . . . . . Part Studies Acquired . | . . . . . Parts Repaired 1 | . . . . 1 Time 44 | . . . . 44 Parts Recycled . | . . . . . Recycled Matter . | . . . . . Retrieved Matter . | . . . . . Retrieved Components 9 | . 9 . . . Parts Scanalyzed . | . . . . . Part Schematics Acquired . | . . . . . Parts Damaged . | . . . . . Bothacking | -11 -10 -10 -9 -8 ------------ Run | Yrd Mat Min Mat Mat Used RIF Installer . | . . . . . Robots Hacked . | . . . . . Non-combat . | . . . . . Combat . | . . . . . Robot Hacks Applied . | . . . . . Relay Couplers Released . | . . . . . Fabnet Peak Effective % . | . . . . . Robots Rewired . | . . . . . Allies Hacked . | . . . . . Hacks Repelled . | . . . . . Allies | -11 -10 -10 -9 -8 -------- Run | Yrd Mat Min Mat Mat Total Allies 2 | . . 2 . . Largest Group 2 | . . 2 2 . Highest-Rated Group 41 | . . 41 41 . Highest-Rated Ally 31 | . . 31 31 . Total Orders . | . . . . . Ally Attacks 11 | . . 3 8 . Total Damage 170 | . . 42 128 . Kills 3 | . . . 3 . Allies Corrupted . | . . . . . Allies Melted . | . . . . . Intel | -11 -10 -10 -9 -8 ------- Run | Yrd Mat Min Mat Mat Active Infowar (turns) 1886 | 7 602 571 379 327 Terrain 1886 | 7 602 571 379 327 Robot Analysis Total 1 | . . . . 1 Derelict Logs Recovered 2 | . . 2 . . Drone Launches . | . . . . . Drone Recoveries . | . . . . . Exploration | -11 -10 -10 -9 -8 ------------- Run | Yrd Mat Min Mat Mat Turns Passed 3056 | 139 602 571 379 1365 Spaces Moved 1553 | 67 295 399 198 594 Core 46 | 23 . . . 23 Treads 936 | 44 295 45 127 425 Legs 452 | . . 354 71 27 Wheels . | . . . . . Hover . | . . . . . Flight 119 | . . . . 119 Fastest Speed 40 | 50 160 120 120 40 Average Speed 147 | 154 160 124 148 155 Slowest Speed 650 | 200 160 160 210 650 Overloaded Moves . | . . . . . Propulsion Burnouts . | . . . . . Robots Hopped 3 | . . 1 . 2 Potential Cave-ins . | . . . . . Cave-ins Triggered . | . . . . . Exploration Rate (%) 37 | 5 51 64 21 46 Regions Visited 4 Branch Regions 1 Pre-discovered Areas . | . . . . . Known Exits Taken 1 | . . . 1 . Unknown Exits Taken 3 | 1 1 1 . . Scrap Searched . | . . . . . Spaces Dug 2 | . . . . 2 Terrain Destroyed 24 | . . 5 5 14 Melee 2 | . . . . 2 Projectile 16 | . . 5 5 6 AOE 6 | . . . . 6 Terrain Rammed . | . . . . . Walls Destroyed . | . . . . . Machines Disabled . | . . . . . Actions | -11 -10 -10 -9 -8 --------- Run | Yrd Mat Min Mat Mat Total 1956 | 89 351 449 244 823 Wait 35 | . . 17 . 18 Move 1543 | 66 294 396 197 590 Hop 3 | . . 1 . 2 Pick Up 61 | 9 11 5 5 31 Fast Attach . | . . . . . Attach 32 | 7 1 . 3 21 Detach 2 | . . . . 2 Swap 28 | . 2 6 8 12 Drop 30 | . 4 4 6 16 Fire 201 | 7 37 16 25 116 Melee 19 | . . 4 . 15 Ram . | . . . . . Kick . | . . . . . Crush 2 | . 2 . . . Escape Stasis . | . . . . . Rewire . | . . . . . Trap . | . . . . . Miscellaneous . | . . . . . Route ------- -11/Scrapyard -10/Materials (discovered 2 exits: *Mat / *Min) -10/Mines (discovered 2 exits: *Mat x2) -9/Materials (discovered 4 exits: *Mat x2 / *Min x2) -8/Materials History --------- Turn | Location | Event 8 | -11/Scrapyard | Discovered new exit (range 16) 140 | -11/Scrapyard | Entered Materials 317 | -10/Materials | Build established: Mutant 560 | -10/Materials | Discovered new exit (range 8) 690 | -10/Materials | Discovered new exit (range 8) 742 | -10/Materials | Entered Mines 775 | -10/Mines | Learned 2 Materials zone layouts 807 | -10/Mines | Met a Derelict who couldn't figure out how to use a Trap Extractor 943 | -10/Mines | Discovered new exit (range 15) 979 | -10/Mines | A weapon hastily lodged in a ceiling crevice suddenly fell to the ground 1057 | -10/Mines | Discovered new exit (range 9) 1081 | -10/Mines | Learned location of 1 exit from Materials 1313 | -10/Mines | Entered Materials 1313 | -9/Materials | Accompanied by 2 allies 1313 | -9/Materials | Evolved 2 slots: Utility x2 1314 | -9/Materials | Identified exit to Materials 1315 | -9/Materials | Identified exit to Mines 1318 | -9/Materials | Led the pair of lost Derelicts to an unsafe place 1536 | -9/Materials | Discovered exit to Materials (range 15) 1563 | -9/Materials | Discovered exit to Mines (range 11) 1692 | -9/Materials | Entered another Materials area 1692 | -8/Materials | Evolved 2 slots: Power x1, Weapon x1 1827 | -8/Materials | Lost 3 parts (1p2n) 1882 | -8/Materials | Build established: Scavenger-Mutant 2173 | -8/Materials | Lost 4 parts (2p1n1w) 2372 | -8/Materials | Repaired Recalibrator? 2805 | -8/Materials | Build established: Mutant 2992 | -8/Materials | Core integrity fell below 50% 3047 | -8/Materials | Core integrity fell below 20% 3057 | -8/Materials | Destroyed by X-62 Marksman with Pulse Rifle Last Messages --------------- G-47 Trooper knocked back. G-47 Trooper destroyed. Penetrated by Slug. Lightning Gun destroyed. X-62 Marksman destroyed. Med. Treads destroyed. Overheating: Hacking Suite damaged (-3). Overheating: Deuterium Engine damaged (-52). Overheating: Flak Cannon damaged (-52). X-62 Marksman knocked back. Penetrated by Slug. X-62 Marksman knocked back. Overheating: System interference. Chainsword temporarily disabled. Penetrated by Slug. O-16 Technician knocked back. G-47 Trooper knocked back. X-62 Marksman knocked back. Penetrated by Slug. Flak Cannon destroyed. Map ----- +----------------------------------------------------+ | ????? ! ??# # ! # #???????????? | | ????" ??# ########### #???????????? | | ??????????# #?????????# #???????????? | | ??????????# #?????????##%##???????????? | | ??????????# #??????????# #????????????? | | ??????????# #??????????# #????????????? | | ??????????# #??????????# #????????????? | | ?????????? ??????????# #????????????? | | #????????? ???????????# #????????????? | | #????????? ???????????# #????????????? | | ??????????? ???????????# #????????????? | | ?????????????????????????# #????????????? | | ?????????????????????????# #????????????? | | ?????????????????????????# #?????#??????? | | ?????????????????????????# #???? ?????? | | ????????????????????????##[###?! ??????? | | ????????????????????????#;!; #?% ???????? | | ??????????##???##########;%;;# !????????? | | ???????#### #??# !! ^^ !o! # ?????????? | | ???????# ??# ! [ +??????????? | | ???????# " ?# ^ !^ x#??????????? | | ???????#""" ?#^ % #??????????? | | ???????#""" # !=|######?????? | | ???????#""" # / =g #?????? | | ???????# "" + *! % %[ #?????? | | ???????#""" # =%[ @ #?????? | | ???????#"" # =#####*###### #?????? | | ???????#"" = ?#%* #???###????? #?????? | | ???????# " ?# #???????????? #?????? | | ???????# ??# #????????????? #?????? | | ???????######??# #????????????? +?????? | | ??????????????? ????????????????????? | | ??????????????# #???????????????????? | | ??????????????# =%= #???????????????????? | | ??????????????# ! #???????????????????? | | ??????????????# #???????????????????? | | ??????????????###+###???????????????????? | | ????????????????????????????????????????? | | ????????????????????????????????????????? | | ????????????????????????????????????????? | | ????????????????????????????????????????? | | ????????????????????????????????H???????? | | ????????????????????????????????????????? | | ????????????????????????????????????????? | | ????????????????????????????????????????? | | ????????????????????????????????????????? | | ????????????????????????????????????????? | | ????????????????????????????????????????? | | ????????????????????????????????????????? | | ????????????????????????????????????????? | +----------------------------------------------------+ Best States ------------- Heat Dissipation 50 Energy Generation 23 Energy Capacity 450 Matter Stores 300 Matter Capacity 300 Sight Range 16 Terrain Scan Range 16 Terrain Scan Density 10 Armor Coverage 600 Evasion (%) 62 Recoil Reduction 2 Offensive Hacking 10 Item Schematics ----------------- None Robot Schematics ------------------ None Fabricated ------------ Nothing Repaired ---------- Recalibrator | 20% | -8/Materials Studied --------- None Alien Tech Used ----------------- None Achievements -------------- None Challenges ------------ None Game ------ Seed InertialEncryptedPendant Manual? 0 Play Time 00:49:47 Cumulative 5.2 hours Start 2025.12.12 @ 08:25:55 End 2025.12.12 @ 09:15:20 Sessions 1 Manual Loads 0 Difficulty Rogue Special Mode None Game No. 9 Rogue 9 Adventurer 0 Explorer 0 Win Type - Total 0 Types 0/0/0/0/0/0/0/0/0/0 Lore% 6 Gallery% 9 Achievement% 9 Wizard Run 0 Options --------- Layout 1 ASCII 0 Keyboard 0 Movement Mouse Keybinds 0 Fullscreen 1 Font 16/SmallcapsGlow Map View 25x17 Zoom Use 100% Tactical HUD 0 Map Filters NONE Filters NONE Steam 1 RUN: 7d24f878-ad3b-4bd5-a241-8e1d4072486b